[Event "FIDE Open World Rapid 2024"]
[Site "New York"]
[Date "2024.12.27"]
[Round "8.42"]
[White "Andriasian, Zaven"]
[Black "Brodsky, David"]
[Result "1-0"]
[ECO "C42"]
[WhiteElo "2554"]
[BlackElo "2538"]
[Annotator "ChessBase"]
[PlyCount "121"]
[EventDate "2024.12.14"]
[EventType "swiss"]
[EventCountry "USA"]
[SourceTitle "playchess.com"]
[Source "ChessBase"]
[SourceQuality "1"]
[TimeControl "900+10"]

1. e4 {[%emt 0:00:03]} e5 {[%emt 0:00:05]} 2. Nf3 {[%emt 0:00:01]} Nf6 {[%emt 0:00:04]} 3. Nxe5 {[%emt 0:00:11]} d6 {[%emt 0:00:02]} 4. Nf3 {[%emt 0:00:02]} Nxe4 {[%emt 0:00:02]} 5. Nc3 {[%emt 0:00:01]} Nxc3 {[%emt 0:00:03]} 6. dxc3 {[%emt 0:00:02]} Be7 {[%emt 0:00:05]} 7. Be3 {[%emt 0:00:09]} Nc6 {[%emt 0:00:11]} 8. Qd2 {[%emt 0:00:07]} Bf5 {[%emt 0:00:05]} 9. O-O-O {[%emt 0:00:16]} Qd7 {[%emt 0:00:18]} 10. h3 {[%emt 0:00:32]} a6 {[%emt 0:00:39]} 11. Kb1 {[%emt 0:00:46]} O-O-O {[%emt 0:00:24]} 12. Nd4 {[%emt 0:01:03]} Nxd4 {[%emt 0:00:07]} 13. Bxd4 {[%emt 0:01:22]} Rhg8 {[%emt 0:00:20]} 14. Be2 {[%emt 0:00:28]} g6 {[%emt 0:01:59]} 15. Rhe1 {[%emt 0:00:55]} Rge8 {[%emt 0:01:18]} 16. b3 {[%emt 0:02:19]} h5 {[%emt 0:00:45]} 17. c4 {[%emt 0:00:47]} Kb8 {[%emt 0:00:46]} 18. Bf3 {[%emt 0:00:42]} Bf8 {[%emt 0:00:24]} 19. Be3 {[%emt 0:00:23]} Bg7 {[%emt 0:01:26]} 20. Qd5 {[%emt 0:00:16]} Qc8 {[%emt 0:03:24]} 21. Bg5 {[%emt 0:02:32]} f6 {[%emt 0:01:57]} 22. Be3 {[%emt 0:00:15]} Be6 {[%emt 0:02:00]} 23. Qd4 {[%emt 0:00:14]} c5 {[%emt 0:00:01]} 24. Qd2 {[%emt 0:00:17]} Ka7 {[%emt 0:01:17]} 25. Bf4 {[%emt 0:01:01]} g5 {[%emt 0:00:11]} 26. Be3 {[%emt 0:01:20]} g4 {[%emt 0:00:14]} 27. hxg4 {[%emt 0:00:02]} hxg4 {[%emt 0:00:01]} 28. Bd5 {[%emt 0:00:06]} Bxd5 {[%emt 0:00:40]} 29. Qxd5 {[%emt 0:00:01]} f5 {[%emt 0:00:03]} 30. Bf4 {[%emt 0:01:48]} Be5 {[%emt 0:00:29]} 31. g3 {[%emt 0:00:50]} Qc7 {[%emt 0:00:11]} 32. Qd3 {[%emt 0:00:13]} Bd4 {[%emt 0:00:36]} 33. Be3 {[%emt 0:00:49]} Qa5 {[%emt 0:00:10]} 34. Rh1 {[%emt 0:00:24]} Bxe3 {[%emt 0:00:20]} 35. fxe3 {[%emt 0:00:01]} Re5 {[%emt 0:00:03]} 36. Rh7 {[%emt 0:00:07]} Qb6 {[%emt 0:00:06]} 37. Rf7 {[%emt 0:00:12]} d5 {[%emt 0:00:16]} 38. cxd5 {[%emt 0:00:21]} Qg6 {[%emt 0:00:06]} 39. Rc7 {[%emt 0:00:17]} Qd6 {[%emt 0:00:04]} 40. Rf7 {[%emt 0:00:15]} Qg6 {[%emt 0:00:16]} 41. Rc7 {[%emt 0:00:16]} Qd6 {[%emt 0:00:01]} 42. Rf7 {[%emt 0:00:05]} Qg6 {[%emt 0:00:06]} 43. Qc3 {[%emt 0:00:14]} Rexd5 {[%emt 0:00:08]} 44. Rxd5 {[%emt 0:00:01]} Rxd5 {[%emt 0:00:02]} 45. Re7 {[%emt 0:00:02]} Qc6 {[%emt 0:00:20]} 46. Kb2 {[%emt 0:00:09]} Rd1 {[%emt 0:00:27]} 47. Re5 {[%emt 0:00:02]} Rd5 {[%emt 0:00:01]} 48. Re7 {[%emt 0:00:04]} Rd1 {[%emt 0:00:02]} 49. a4 {[%emt 0:00:02]} Qd6 {[%emt 0:00:34]} 50. Qg7 {[%emt 0:00:08]} Qc6 {[%emt 0:00:00]} 51. Qe5 {[%emt 0:00:19]} Rd5 {[%emt 0:00:10]} 52. Qc3 {[%emt 0:00:04]} Rd1 {[%emt 0:00:18]} 53. a5 {[%emt 0:00:12]} Qd6 {[%emt 0:00:08]} 54. Qg7 {[%emt 0:00:23]} Qc6 {[%emt 0:00:00]} 55. Rc7 {[%emt 0:00:08]} Qh1 {[%emt 0:00:10]} 56. Ka2 {[%emt 0:00:17]} Qd5 {[%emt 0:00:11]} 57. Qc3 {[%emt 0:00:03]} Rg1 {[%emt 0:00:12]} 58. Rxc5 {[%emt 0:00:04]} Qd1 {[%emt 0:00:20]} 59. Rxf5 {[%emt 0:00:04]} Qd6 {[%emt 0:00:05]} 60. Rf6 {[%emt 0:00:11]} Qd5 {[%emt 0:00:11]} 61. e4 {[%emt 0:00:02]} 1-0

[Event "FIDE Open World Rapid 2024"]
[Site "New York"]
[Date "2024.12.27"]
[Round "8.42"]
[White "Larrea, Manuel"]
[Black "Wanyama, Harold"]
[Result "0-1"]
[ECO "B22"]
[WhiteElo "2259"]
[BlackElo "2154"]
[Annotator "ChessBase"]
[PlyCount "72"]
[EventDate "2024.12.14"]
[EventType "swiss"]
[EventCountry "USA"]
[SourceTitle "playchess.com"]
[Source "ChessBase"]
[SourceQuality "1"]
[TimeControl "900+10"]

1. e4 {[%emt 0:00:02]} c5 {[%emt 0:00:02]} 2. Nf3 {[%emt 0:00:02]} e6 {[%emt 0:00:03]} 3. c3 {[%emt 0:00:13]} Nf6 {[%emt 0:00:03]} 4. e5 {[%emt 0:00:01]} Nd5 {[%emt 0:00:03]} 5. d4 {[%emt 0:00:01]} cxd4 {[%emt 0:00:03]} 6. cxd4 {[%emt 0:00:02]} Qc7 {[%emt 0:00:03]} 7. a3 {[%emt 0:00:57]} d6 {[%emt 0:00:04]} 8. exd6 {[%emt 0:00:16]} Bxd6 {[%emt 0:00:02]} 9. Bd3 {[%emt 0:00:03]} O-O {[%emt 0:00:07]} 10. O-O {[%emt 0:00:03]} Nd7 {[%emt 0:00:10]} 11. Bc2 {[%emt 0:00:29]} b6 {[%emt 0:00:14]} 12. Qd3 {[%emt 0:00:19]} N7f6 {[%emt 0:00:04]} 13. Nc3 {[%emt 0:00:07]} Nxc3 {[%emt 0:00:10]} 14. bxc3 {[%emt 0:00:02]} a5 {[%emt 0:00:16]} 15. Bg5 {[%emt 0:00:56]} Ba6 {[%emt 0:00:09]} 16. Qd2 {[%emt 0:00:01]} Bxf1 {[%emt 0:00:42]} 17. Bxf6 {[%emt 0:00:02]} Bf4 {[%emt 0:01:18]} 18. Be5 {[%emt 0:00:56]} Bxe5 {[%emt 0:01:39]} 19. Rxf1 {[%emt 0:00:34]} Bf6 {[%emt 0:00:04]} 20. Be4 {[%emt 0:00:39]} Rac8 {[%emt 0:00:04]} 21. Rc1 {[%emt 0:00:01]} Rfd8 {[%emt 0:00:03]} 22. h4 {[%emt 0:00:17]} Qe7 {[%emt 0:00:16]} 23. Qd3 {[%emt 0:00:35]} g6 {[%emt 0:00:18]} 24. h5 {[%emt 0:00:08]} Bg7 {[%emt 0:00:03]} 25. hxg6 hxg6 {[%emt 0:00:01]} 26. Nd2 {[%emt 0:01:37]} Qxa3 {[%emt 0:00:10]} 27. Rc2 {[%emt 0:00:09]} a4 {[%emt 0:00:37]} 28. Nc4 {[%emt 0:00:27]} Qa1+ {[%emt 0:00:25]} 29. Kh2 {[%emt 0:00:01]} b5 {[%emt 0:00:45]} 30. Nb6 {[%emt 0:00:16]} Rc5 {[%emt 0:00:27]} 31. Bf3 {[%emt 0:00:40]} Be5+ {[%emt 0:00:11]} 32. g3 {[%emt 0:00:11]} Bc7 {[%emt 0:00:08]} 33. Qe3 {[%emt 0:01:25]} Rf5 {[%emt 0:00:58]} 34. Na8 {[%emt 0:00:05]} Bd6 {[%emt 0:00:43]} 35. Rc1 {[%emt 0:00:18]} Qb2 {[%emt 0:00:09]} 36. Kg2 {[%emt 0:00:15]} Rxf3 {[%emt 0:00:19]} 0-1

[Event "FIDE Open World Rapid 2024"]
[Site "New York"]
[Date "2024.12.27"]
[Round "8.43"]
[White "Zhalmakhanov, Ramazan"]
[Black "Meier, Georg"]
[Result "0-1"]
[ECO "D02"]
[WhiteElo "2486"]
[BlackElo "2599"]
[Annotator "ChessBase"]
[PlyCount "86"]
[EventDate "2024.12.14"]
[EventType "swiss"]
[EventCountry "USA"]
[SourceTitle "playchess.com"]
[Source "ChessBase"]
[SourceQuality "1"]
[TimeControl "900+10"]

1. d4 {[%emt 0:00:03]} e6 {[%emt 0:00:00]} 2. Bf4 {[%emt 0:00:24]} d5 {[%emt 0:00:02]} 3. e3 {[%emt 0:00:06]} Bd6 {[%emt 0:00:02]} 4. Nf3 {[%emt 0:00:15]} Bxf4 {[%emt 0:00:07]} 5. exf4 {[%emt 0:00:01]} Qd6 {[%emt 0:00:01]} 6. Ne5 {[%emt 0:00:26]} Qb4+ {[%emt 0:01:12]} 7. Nc3 {[%emt 0:00:06]} Qxb2 {[%emt 0:00:15]} 8. Nb5 {[%emt 0:00:03]} Qb4+ {[%emt 0:00:02]} 9. c3 {[%emt 0:00:09]} Qe7 {[%emt 0:01:23]} 10. Qa4 {[%emt 0:06:09]} c6 {[%emt 0:02:14]} 11. Nxa7 {[%emt 0:00:08]} b5 {[%emt 0:00:01]} 12. Nxc8 {[%emt 0:00:06]} Rxa4 {[%emt 0:00:01]} 13. Nxe7 {[%emt 0:00:05]} Nxe7 {[%emt 0:00:03]} 14. Be2 {[%emt 0:00:46]} f6 {[%emt 0:00:47]} 15. Nd3 {[%emt 0:00:14]} Nd7 {[%emt 0:00:03]} 16. Kd2 {[%emt 0:00:32]} Kf7 {[%emt 0:00:27]} 17. Kc2 {[%emt 0:01:25]} Rha8 {[%emt 0:01:06]} 18. Kb2 {[%emt 0:00:03]} R4a5 {[%emt 0:02:42]} 19. Rhe1 {[%emt 0:00:41]} Nb6 {[%emt 0:01:28]} 20. Bd1 {[%emt 0:01:34]} Nc4+ {[%emt 0:01:47]} 21. Kb1 {[%emt 0:00:06]} Nf5 {[%emt 0:01:39]} 22. Bb3 {[%emt 0:00:41]} Nh4 {[%emt 0:00:24]} 23. Nc5 {[%emt 0:00:35]} Nxg2 {[%emt 0:00:22]} 24. Rxe6 {[%emt 0:00:02]} Nxf4 {[%emt 0:00:29]} 25. Rxc6 {[%emt 0:00:52]} Re8 {[%emt 0:00:01]} 26. Bxc4 {[%emt 0:00:45]} dxc4 {[%emt 0:00:40]} 27. a4 {[%emt 0:00:20]} Nd5 {[%emt 0:00:56]} 28. Kb2 {[%emt 0:00:52]} Re2+ {[%emt 0:01:01]} 29. Ka3 {[%emt 0:00:01]} Rxf2 {[%emt 0:00:22]} 30. Rd6 {[%emt 0:00:08]} b4+ {[%emt 0:00:10]} 31. cxb4 {[%emt 0:00:04]} Rf3+ {[%emt 0:00:01]} 32. Kb2 {[%emt 0:00:01]} Nxb4 {[%emt 0:00:03]} 33. Rd7+ {[%emt 0:00:10]} Kg6 {[%emt 0:00:07]} 34. Ne6 {[%emt 0:00:45]} Rb3+ {[%emt 0:00:08]} 35. Kc1 {[%emt 0:00:02]} Rf5 {[%emt 0:00:13]} 36. Rxg7+ {[%emt 0:00:53]} Kh6 {[%emt 0:00:01]} 37. Rg1 {[%emt 0:00:13]} Rf2 {[%emt 0:00:01]} 38. Nc5 {[%emt 0:00:04]} Rh3 {[%emt 0:00:49]} 39. a5 {[%emt 0:00:44]} Na2+ {[%emt 0:00:10]} 40. Rxa2 {[%emt 0:01:01]} Rxa2 {[%emt 0:00:01]} 41. Kb1 {[%emt 0:00:13]} Rhxh2 {[%emt 0:00:02]} 42. a6 {[%emt 0:00:02]} Rhb2+ {[%emt 0:00:02]} 43. Kc1 {[%emt 0:00:00]} c3 {[%emt 0:00:01]} 0-1

[Event "FIDE Open World Rapid 2024"]
[Site "New York"]
[Date "2024.12.28"]
[Round "8.43"]
[White "Ahmed, Nidal"]
[Black "Wong, Hayoung"]
[Result "0-1"]
[ECO "C26"]
[WhiteElo "1796"]
[BlackElo "1704"]
[Annotator "NA"]
[PlyCount "188"]
[EventDate "2024.12.14"]
[EventType "swiss"]
[EventCountry "USA"]
[SourceTitle "playchess.com"]
[Source "ChessBase"]
[SourceQuality "1"]
[TimeControl "900+10"]

1. e4 {[%emt 0:00:03]} e5 {[%emt 0:00:01]} 2. Nc3 {[%emt 0:00:01]} Nc6 {[%emt 0:00:06]} 3. g3 {[%emt 0:00:02]} Nf6 {[%emt 0:00:03]} 4. Bg2 {[%emt 0:00:02]} Bc5 {[%emt 0:00:16]} 5. Nge2 {[%emt 0:00:09]} d6 {[%emt 0:00:07]} 6. Na4 {[%emt 0:00:04]} Bb6 {[%emt 0:00:09]} 7. Nxb6 {[%emt 0:00:02]} axb6 {[%emt 0:00:02]} 8. d4 {[%emt 0:00:07]} exd4 {[%emt 0:00:42]} 9. Nxd4 {[%emt 0:00:09]} Nxd4 {[%emt 0:00:08]} 10. Qxd4 {[%emt 0:00:03]} O-O {[%emt 0:00:13]} 11. Bg5 {[%emt 0:00:10]} Qe7 {[%emt 0:01:09]} 12. O-O {[%emt 0:00:14]} Qe6 {[%emt 0:00:19]} 13. Bxf6 {[%emt 0:00:16]} Qxf6 {[%emt 0:00:36]} 14. Qxf6 {[%emt 0:00:10]} gxf6 {[%emt 0:00:01]} 15. a3 {[%emt 0:00:10]} Bd7 {[%emt 0:00:13]} 16. Rfe1 {[%emt 0:01:01]} Rfe8 {[%emt 0:00:04]} 17. Rad1 {[%emt 0:00:14]} Bc6 {[%emt 0:00:08]} 18. Re3 {[%emt 0:00:23]} Ra4 {[%emt 0:00:11]} 19. Rde1 {[%emt 0:00:08]} Rd4 {[%emt 0:00:19]} 20. Rd3 {[%emt 0:00:49]} Rc4 {[%emt 0:00:27]} 21. c3 {[%emt 0:00:16]} Ra4 {[%emt 0:01:15]} 22. Rde3 {[%emt 0:00:21]} Kf8 {[%emt 0:01:17]} 23. f4 {[%emt 0:00:10]} Ra5 {[%emt 0:01:04]} 24. Kf2 {[%emt 0:00:09]} Ra4 {[%emt 0:00:29]} 25. Bf3 {[%emt 0:00:47]} Ra5 {[%emt 0:01:28]} 26. g4 {[%emt 0:00:11]} h6 {[%emt 0:00:01]} 27. h4 {[%emt 0:00:06]} Ra4 {[%emt 0:00:09]} 28. Kg3 {[%emt 0:00:04]} Ra5 {[%emt 0:00:13]} 29. Bd1 {[%emt 0:01:11]} Kg7 {[%emt 0:00:48]} 30. Bc2 {[%emt 0:00:25]} Kf8 {[%emt 0:00:53]} 31. Bd1 {[%emt 0:00:33]} Kg7 {[%emt 0:00:14]} 32. Bf3 {[%emt 0:00:02]} Kf8 {[%emt 0:00:14]} 33. f5 {[%emt 0:00:34]} Rae5 {[%emt 0:00:04]} 34. Kf4 {[%emt 0:00:09]} Bd7 {[%emt 0:00:38]} 35. R1e2 {[%emt 0:01:10]} Bc6 {[%emt 0:00:23]} 36. c4 {[%emt 0:00:23]} b5 {[%emt 0:00:22]} 37. cxb5 {[%emt 0:00:24]} Bxb5 {[%emt 0:00:08]} 38. Rd2 {[%emt 0:00:19]} Bc6 {[%emt 0:00:08]} 39. Rdd3 {[%emt 0:00:13]} Ra8 {[%emt 0:00:22]} 40. g5 {[%emt 0:00:19]} hxg5+ {[%emt 0:00:47]} 41. hxg5 {[%emt 0:00:02]} Ke7 {[%emt 0:01:02]} 42. gxf6+ {[%emt 0:00:11]} Kxf6 {[%emt 0:00:02]} 43. Rd1 {[%emt 0:00:22]} Ra4 {[%emt 0:01:00]} 44. Rh1 {[%emt 0:00:53]} Rxf5+ {[%emt 0:00:19]} 45. Kg3 {[%emt 0:00:22]} Rg5+ {[%emt 0:00:14]} 46. Kf2 {[%emt 0:00:30]} Re5 {[%emt 0:00:10]} 47. Rh6+ {[%emt 0:00:20]} Kg7 {[%emt 0:00:12]} 48. Rh4 {[%emt 0:00:09]} Rc4 {[%emt 0:00:16]} 49. Re2 {[%emt 0:01:06]} Rec5 {[%emt 0:00:53]} 50. Rg4+ {[%emt 0:00:21]} Kf6 {[%emt 0:00:05]} 51. Rf4+ {[%emt 0:00:06]} Ke7 {[%emt 0:00:05]} 52. Kg3 {[%emt 0:01:46]} Rc2 {[%emt 0:00:04]} 53. b4 {[%emt 0:00:21]} R5c3 {[%emt 0:00:05]} 54. Rxc2 {[%emt 0:00:13]} Rxc2 {[%emt 0:00:02]} 55. Bh5 {[%emt 0:00:12]} Rc3+ {[%emt 0:00:12]} 56. Rf3 {[%emt 0:00:13]} Rxf3+ {[%emt 0:00:04]} 57. Bxf3 {[%emt 0:00:05]} Ke6 {[%emt 0:00:04]} 58. Kf4 {[%emt 0:00:02]} Kf6 {[%emt 0:00:31]} 59. Bh5 {[%emt 0:00:23]} Ke7 {[%emt 0:00:24]} 60. Bg4 {[%emt 0:00:09]} Ba4 {[%emt 0:00:50]} 61. Be2 {[%emt 0:00:11]} Bb3 {[%emt 0:00:13]} 62. b5 {[%emt 0:00:24]} f6 {[%emt 0:00:22]} 63. Ke3 {[%emt 0:00:09]} Ke6 {[%emt 0:00:15]} 64. Kd4 {[%emt 0:00:03]} d5 {[%emt 0:00:55]} 65. Kc3 {[%emt 0:01:29]} Ba2 {[%emt 0:00:10]} 66. Kb2 {[%emt 0:01:10]} Bc4 {[%emt 0:00:02]} 67. exd5+ {[%emt 0:00:09]} Kxd5 {[%emt 0:00:46]} 68. Bf3+ {[%emt 0:00:06]} Kc5 {[%emt 0:00:01]} 69. Bxb7 {[%emt 0:00:41]} Kxb5 {[%emt 0:00:11]} 70. Kc3 {[%emt 0:00:10]} Be6 {[%emt 0:00:03]} 71. Bf3 {[%emt 0:00:26]} c5 {[%emt 0:00:09]} 72. Bd1 {[%emt 0:00:19]} f5 {[%emt 0:00:16]} 73. a4+ {[%emt 0:00:25]} Ka5 {[%emt 0:00:01]} 74. Bc2 {[%emt 0:00:10]} f4 {[%emt 0:00:19]} 75. Bd1 {[%emt 0:00:19]} Bd5 {[%emt 0:00:10]} 76. Kd2 {[%emt 0:00:14]} Kb4 {[%emt 0:00:02]} 77. Kd3 {[%emt 0:00:11]} Bc6 {[%emt 0:00:09]} 78. a5 {[%emt 0:00:10]} Kxa5 {[%emt 0:00:01]} 79. Kc4 {[%emt 0:00:03]} Kb6 {[%emt 0:00:02]} 80. Kc3 {[%emt 0:00:07]} Be4 {[%emt 0:00:20]} 81. Kc4 {[%emt 0:00:07]} Bg2 {[%emt 0:00:08]} 82. Kd3 {[%emt 0:00:08]} Kb5 {[%emt 0:00:07]} 83. Bb3 {[%emt 0:00:04]} Kb4 {[%emt 0:00:05]} 84. Be6 {[%emt 0:00:28]} f3 {[%emt 0:00:27]} 85. Bd5 {[%emt 0:00:02]} Kb5 {[%emt 0:00:19]} 86. Ke3 {[%emt 0:00:08]} Kb4 {[%emt 0:00:14]} 87. Kd3 {[%emt 0:00:07]} Bf1+ {[%emt 0:00:25]} 88. Ke3 {[%emt 0:00:22]} Be2 {[%emt 0:00:01]} 89. Kd2 {[%emt 0:00:17]} c4 {[%emt 0:00:05]} 90. Be4 {[%emt 0:00:22]} Kb3 {[%emt 0:00:04]} 91. Bf5 {[%emt 0:00:06]} Kb2 {[%emt 0:00:04]} 92. Be4 {[%emt 0:00:02]} c3+ {[%emt 0:00:05]} 93. Ke3 {[%emt 0:00:11]} Kc1 {[%emt 0:00:10]} 94. Kd4 {[%emt 0:01:00]} Kd2 {[%emt 0:00:07]} 0-1

[Event "FIDE Open World Rapid 2024"]
[Site "New York"]
[Date "2024.12.27"]
[Round "8.44"]
[White "Grebnev, Aleksey"]
[Black "Lenderman, Aleksandr"]
[Result "1/2-1/2"]
[ECO "D27"]
[WhiteElo "2555"]
[BlackElo "2480"]
[Annotator "ChessBase"]
[PlyCount "123"]
[EventDate "2024.12.14"]
[EventType "swiss"]
[EventCountry "USA"]
[SourceTitle "playchess.com"]
[Source "ChessBase"]
[SourceQuality "1"]
[TimeControl "900+10"]

1. d4 {[%emt 0:00:03]} d5 {[%emt 0:00:07]} 2. c4 {[%emt 0:00:02]} c6 {[%emt 0:00:01]} 3. Nc3 {[%emt 0:00:04]} Nf6 {[%emt 0:00:03]} 4. e3 {[%emt 0:00:03]} a6 {[%emt 0:00:02]} 5. Bd3 {[%emt 0:00:15]} dxc4 {[%emt 0:00:24]} 6. Bxc4 {[%emt 0:00:02]} b5 {[%emt 0:00:02]} 7. Bb3 {[%emt 0:00:03]} e6 {[%emt 0:00:11]} 8. Nf3 {[%emt 0:00:05]} Bb7 {[%emt 0:00:40]} 9. O-O {[%emt 0:00:04]} c5 {[%emt 0:00:29]} 10. e4 {[%emt 0:00:14]} cxd4 {[%emt 0:01:28]} 11. Nxd4 {[%emt 0:00:02]} Nc6 {[%emt 0:01:27]} 12. Nxc6 {[%emt 0:00:06]} Qxd1 {[%emt 0:00:14]} 13. Rxd1 {[%emt 0:00:02]} Bxc6 {[%emt 0:00:01]} 14. f3 {[%emt 0:00:23]} Be7 {[%emt 0:01:32]} 15. Be3 {[%emt 0:00:34]} O-O {[%emt 0:00:20]} 16. Rac1 {[%emt 0:00:11]} Rfc8 {[%emt 0:00:08]} 17. Ne2 {[%emt 0:00:56]} Bb7 {[%emt 0:00:54]} 18. Nf4 {[%emt 0:00:42]} Rxc1 {[%emt 0:00:28]} 19. Rxc1 {[%emt 0:00:32]} Rc8 {[%emt 0:00:02]} 20. Rxc8+ {[%emt 0:00:11]} Bxc8 {[%emt 0:00:02]} 21. Nd3 {[%emt 0:00:01]} Nd7 {[%emt 0:00:13]} 22. Bd4 {[%emt 0:00:04]} Bb7 {[%emt 0:00:10]} 23. Kf2 {[%emt 0:00:02]} Bc6 {[%emt 0:00:32]} 24. Ke3 {[%emt 0:00:07]} Kf8 {[%emt 0:00:20]} 25. a3 {[%emt 0:00:04]} g6 {[%emt 0:00:22]} 26. g3 {[%emt 0:00:41]} Ke8 {[%emt 0:00:15]} 27. f4 {[%emt 0:02:03]} Nf6 {[%emt 0:00:24]} 28. Nf2 {[%emt 0:00:07]} Nd7 {[%emt 0:00:03]} 29. Bd1 {[%emt 0:01:42]} Kd8 {[%emt 0:00:38]} 30. Nd3 {[%emt 0:00:13]} Kc7 {[%emt 0:00:10]} 31. g4 {[%emt 0:00:21]} a5 {[%emt 0:01:41]} 32. g5 {[%emt 0:00:25]} b4 {[%emt 0:00:57]} 33. axb4 {[%emt 0:00:10]} axb4 {[%emt 0:00:02]} 34. h4 {[%emt 0:00:25]} Bb5 {[%emt 0:00:10]} 35. Ne5 {[%emt 0:01:48]} Nxe5 {[%emt 0:00:11]} 36. Bxe5+ {[%emt 0:00:02]} Kb6 {[%emt 0:00:25]} 37. Bc2 {[%emt 0:01:00]} Bc5+ {[%emt 0:00:10]} 38. Bd4 {[%emt 0:00:18]} e5 {[%emt 0:00:59]} 39. fxe5 {[%emt 0:01:04]} Bc4 {[%emt 0:00:08]} 40. Ba4 {[%emt 0:00:08]} Be6 {[%emt 0:04:45]} 41. Kd3 {[%emt 0:00:07]} Ka5 {[%emt 0:00:09]} 42. Bc6 {[%emt 0:00:18]} Bf8 {[%emt 0:00:01]} 43. Be3 {[%emt 0:03:30]} Bg7 {[%emt 0:00:05]} 44. Kd4 {[%emt 0:00:28]} Kb6 {[%emt 0:00:05]} 45. Be8 {[%emt 0:00:17]} Bf8 {[%emt 0:00:14]} 46. Kd3+ {[%emt 0:00:03]} Ka5 {[%emt 0:00:11]} 47. Bc6 {[%emt 0:01:32]} Bg7 {[%emt 0:00:09]} 48. Kd4 {[%emt 0:00:03]} Bf8 {[%emt 0:00:04]} 49. Bd5 {[%emt 0:01:03]} Kb5 {[%emt 0:00:01]} 50. Kd3 {[%emt 0:00:04]} Bg7 {[%emt 0:00:08]} 51. Bd4 {[%emt 0:00:18]} Bf8 {[%emt 0:00:24]} 52. b3 {[%emt 0:00:04]} Bg7 {[%emt 0:00:04]} 53. Bb2 {[%emt 0:00:29]} Bf8 {[%emt 0:00:06]} 54. Ba1 {[%emt 0:00:02]} Be7 {[%emt 0:00:15]} 55. Bd4 {[%emt 0:00:04]} Bf8 {[%emt 0:00:14]} 56. Bb2 {[%emt 0:00:25]} Be7 {[%emt 0:00:04]} 57. Ba1 {[%emt 0:00:06]} Bf8 {[%emt 0:00:01]} 58. Bd4 {[%emt 0:00:02]} Be7 {[%emt 0:00:01]} 59. Ba7 {[%emt 0:00:06]} Bf8 {[%emt 0:00:14]} 60. Kd4 {[%emt 0:00:15]} Be7 {[%emt 0:00:02]} 61. Kd3 {[%emt 0:00:19]} Bf8 {[%emt 0:00:05]} 62. Bd4 {[%emt 0:00:21]} 1/2-1/2

[Event "FIDE Open World Rapid 2024"]
[Site "New York"]
[Date "2024.12.27"]
[Round "8.44"]
[White "Makoto, Rodwell"]
[Black "Grahn, Vidar"]
[Result "1-0"]
[ECO "A08"]
[WhiteElo "2334"]
[BlackElo "2263"]
[Annotator "ChessBase"]
[PlyCount "53"]
[EventDate "2024.12.14"]
[EventType "swiss"]
[EventCountry "USA"]
[SourceTitle "playchess.com"]
[Source "ChessBase"]
[SourceQuality "1"]
[TimeControl "900+10"]

1. Nf3 {[%emt 0:00:01]} d5 {[%emt 0:00:01]} 2. g3 {[%emt 0:00:04]} g6 {[%emt 0:00:01]} 3. Bg2 {[%emt 0:00:04]} Bg7 {[%emt 0:00:01]} 4. O-O {[%emt 0:00:02]} e5 {[%emt 0:00:01]} 5. d3 {[%emt 0:00:02]} Ne7 {[%emt 0:00:03]} 6. Nbd2 {[%emt 0:00:04]} O-O {[%emt 0:00:08]} 7. e4 {[%emt 0:00:02]} c5 {[%emt 0:00:09]} 8. exd5 {[%emt 0:00:25]} Nxd5 {[%emt 0:00:01]} 9. Nc4 {[%emt 0:00:03]} Nc6 {[%emt 0:00:02]} 10. Re1 {[%emt 0:00:02]} Re8 {[%emt 0:00:04]} 11. a4 {[%emt 0:00:02]} h6 {[%emt 0:00:07]} 12. c3 {[%emt 0:00:10]} Rb8 {[%emt 0:00:23]} 13. Nfd2 {[%emt 0:00:54]} f5 {[%emt 0:01:08]} 14. Nb3 {[%emt 0:00:05]} b6 {[%emt 0:00:11]} 15. f4 {[%emt 0:00:33]} Kh7 {[%emt 0:01:02]} 16. fxe5 {[%emt 0:00:23]} Nxe5 {[%emt 0:00:16]} 17. Nxe5 {[%emt 0:00:12]} Rxe5 {[%emt 0:00:06]} 18. Rxe5 {[%emt 0:00:23]} Bxe5 {[%emt 0:00:01]} 19. d4 {[%emt 0:00:06]} cxd4 {[%emt 0:00:19]} 20. Nxd4 {[%emt 0:00:02]} Ne7 {[%emt 0:01:24]} 21. Qb3 {[%emt 0:04:17]} Bxd4+ {[%emt 0:00:36]} 22. cxd4 {[%emt 0:00:02]} Qg8 {[%emt 0:00:26]} 23. Qxg8+ {[%emt 0:00:25]} Nxg8 {[%emt 0:00:00]} 24. Bf4 {[%emt 0:00:01]} Rb7 {[%emt 0:00:28]} 25. Rc1 {[%emt 0:00:16]} Rd7 {[%emt 0:00:57]} 26. Rxc8 {[%emt 0:00:06]} Rxd4 {[%emt 0:00:04]} 27. Rc7+ {[%emt 0:00:03]} 1-0